[Event "*** Titled Tuesday Blitz"]
[Site "Chess.com"]
[Date "2021.04.06"]
[Round "7"]
[White "Forantes"]
[Black "Nachsueb"]
[Result "1-0"]
[WhiteElo "2356"]
[BlackElo "2196"]
[TimeControl "180+1"]
[EndTime "11:18:47 PDT"]
[Termination "Forantes won by resignation"]

1. Nf3 {[%clk 0:03:00.9]} 1... g6 {[%clk 0:02:18.8]} 2. d4 {[%clk 0:02:59.8]}
2... Bg7 {[%clk 0:02:19.5]} 3. b3 {[%clk 0:02:59.8]} 3... c5 {[%clk 0:02:19]} 4.
Bb2 {[%clk 0:03:00.1]} 4... Nc6 {[%clk 0:02:19.2]} 5. e3 {[%clk 0:02:53.3]} 5...
d6 {[%clk 0:02:18]} 6. c4 {[%clk 0:02:52.9]} 6... e6 {[%clk 0:02:16.6]} 7. Qd2
{[%clk 0:02:37.2]} 7... cxd4 {[%clk 0:02:12.1]} 8. Nxd4 {[%clk 0:02:35.1]} 8...
Nxd4 {[%clk 0:02:11.7]} 9. Bxd4 {[%clk 0:02:34.3]} 9... Bxd4 {[%clk 0:02:11.8]}
10. Qxd4 {[%clk 0:02:28.8]} 10... Qf6 {[%clk 0:02:11.7]} 11. Nc3 {[%clk
0:02:25.7]} 11... Qxd4 {[%clk 0:02:11.1]} 12. exd4 {[%clk 0:02:26.6]} 12... Ne7
{[%clk 0:02:10.5]} 13. Nb5 {[%clk 0:02:26.1]} 13... Kd7 {[%clk 0:02:09.1]} 14.
g3 {[%clk 0:02:02.5]} 14... a6 {[%clk 0:02:07.8]} 15. Nc3 {[%clk 0:02:01.7]}
15... Nc6 {[%clk 0:02:05.7]} 16. O-O-O {[%clk 0:02:00.2]} 16... b6 {[%clk
0:01:52.1]} 17. d5 {[%clk 0:01:53.5]} 17... Nd8 {[%clk 0:01:41.4]} 18. dxe6+
{[%clk 0:01:50.4]} 18... fxe6 {[%clk 0:01:41.5]} 19. Bg2 {[%clk 0:01:50.4]}
19... Rb8 {[%clk 0:01:41]} 20. Ne4 {[%clk 0:01:49.7]} 20... Nf7 {[%clk
0:01:40.1]} 21. Rhe1 {[%clk 0:01:45.8]} 21... Bb7 {[%clk 0:01:38.4]} 22. Nf6+
{[%clk 0:01:29.7]} 22... Ke7 {[%clk 0:01:38]} 23. Nd5+ {[%clk 0:01:30]} 23...
Bxd5 {[%clk 0:01:34.6]} 24. Rxd5 {[%clk 0:01:05.1]} 24... b5 {[%clk 0:01:19.1]}
25. cxb5 {[%clk 0:00:44.5]} 25... Rhc8+ {[%clk 0:01:16.9]} 26. Kb2 {[%clk
0:00:41.5]} 26... axb5 {[%clk 0:01:12]} 27. f4 {[%clk 0:00:41]} 27... Rc5 {[%clk
0:01:04.8]} 28. Rxc5 {[%clk 0:00:17.6]} 28... dxc5 {[%clk 0:01:05.7]} 29. Kc3
{[%clk 0:00:14]} 29... Nd6 {[%clk 0:01:01.2]} 30. a4 {[%clk 0:00:12]} 30... b4+
{[%clk 0:01:01]} 31. Kd3 {[%clk 0:00:10.5]} 31... Nf5 {[%clk 0:01:00.8]} 32. Kc4
{[%clk 0:00:08.6]} 32... Rc8 {[%clk 0:00:58.7]} 33. a5 {[%clk 0:00:08.1]} 33...
Nd6+ {[%clk 0:00:56.2]} 34. Kd3 {[%clk 0:00:08.5]} 34... c4+ {[%clk 0:00:54.2]}
35. bxc4 {[%clk 0:00:08.6]} 35... Nxc4 {[%clk 0:00:55.1]} 36. a6 {[%clk
0:00:09.2]} 36... Nb6 {[%clk 0:00:51.1]} 37. a7 {[%clk 0:00:08.9]} 37... Kd6
{[%clk 0:00:50.5]} 38. Rb1 {[%clk 0:00:08]} 38... Nd5 {[%clk 0:00:45.9]} 39.
Bxd5 {[%clk 0:00:06.4]} 39... exd5 {[%clk 0:00:46.3]} 40. Rxb4 {[%clk
0:00:07.1]} 40... Ra8 {[%clk 0:00:47]} 41. Rb7 {[%clk 0:00:07.4]} 41... Kc6
{[%clk 0:00:46.9]} 42. Rxh7 {[%clk 0:00:07.6]} 42... Kc5 {[%clk 0:00:47.4]} 43.
Rc7+ {[%clk 0:00:07.5]} 43... Kb6 {[%clk 0:00:47.2]} 44. Rg7 {[%clk 0:00:08.4]}
44... Kc5 {[%clk 0:00:47.6]} 45. g4 {[%clk 0:00:07.5]} 45... d4 {[%clk
0:00:46.3]} 46. f5 {[%clk 0:00:07.4]} 46... gxf5 {[%clk 0:00:46.4]} 47. gxf5
{[%clk 0:00:07.9]} 47... Rf8 {[%clk 0:00:47]} 48. f6 {[%clk 0:00:07.3]} 48...
Kb6 {[%clk 0:00:46.6]} 49. h4 {[%clk 0:00:05.8]} 49... Rh8 {[%clk 0:00:42.8]}
50. h5 {[%clk 0:00:06.1]} 50... Kc5 {[%clk 0:00:40.4]} 51. h6 {[%clk 0:00:06]}
51... Kd5 {[%clk 0:00:40]} 52. h7 {[%clk 0:00:05.9]} 52... Rf8 {[%clk
0:00:39.8]} 53. Rg8 {[%clk 0:00:04.9]} 1-0

[Event "*** Titled Tuesday Blitz"]
[Site "Chess.com"]
[Date "2021.04.06"]
[Round "7"]
[White "Nuvas"]
[Black "NTBT_DHS"]
[Result "1-0"]
[WhiteElo "2590"]
[BlackElo "2714"]
[TimeControl "180+1"]
[EndTime "11:18:50 PDT"]
[Termination "Nuvas won by checkmate"]

1. d4 {[%clk 0:03:00.9]} 1... Nf6 {[%clk 0:02:58.4]} 2. c4 {[%clk 0:03:01]} 2...
g6 {[%clk 0:02:59.3]} 3. Nc3 {[%clk 0:03:01.2]} 3... Bg7 {[%clk 0:02:58.4]} 4.
e4 {[%clk 0:02:59.7]} 4... O-O {[%clk 0:02:58.8]} 5. h3 {[%clk 0:03:00.2]} 5...
d6 {[%clk 0:02:59.3]} 6. Be3 {[%clk 0:03:00.1]} 6... e5 {[%clk 0:02:58.9]} 7. d5
{[%clk 0:03:00.6]} 7... Na6 {[%clk 0:02:58.1]} 8. g4 {[%clk 0:03:00.3]} 8... Nc5
{[%clk 0:02:58.8]} 9. f3 {[%clk 0:03:00.9]} 9... h5 {[%clk 0:02:59.3]} 10. Qd2
{[%clk 0:03:00.2]} 10... a5 {[%clk 0:02:56.6]} 11. O-O-O {[%clk 0:02:54.1]}
11... Bd7 {[%clk 0:02:55.9]} 12. Nge2 {[%clk 0:02:46.3]} 12... a4 {[%clk
0:02:55.7]} 13. Kb1 {[%clk 0:02:42.7]} 13... h4 {[%clk 0:02:48.9]} 14. Bg5
{[%clk 0:02:40.4]} 14... c6 {[%clk 0:02:44.5]} 15. Bxh4 {[%clk 0:02:38]} 15...
cxd5 {[%clk 0:02:40.6]} 16. Nxd5 {[%clk 0:02:37.9]} 16... Bc6 {[%clk 0:02:37]}
17. Nec3 {[%clk 0:02:22.5]} 17... Nfxe4 {[%clk 0:02:33.4]} 18. Nxe4 {[%clk
0:01:51.6]} 18... Qxh4 {[%clk 0:02:31.4]} 19. Nxc5 {[%clk 0:01:49.8]} 19... dxc5
{[%clk 0:02:30.6]} 20. Bd3 {[%clk 0:01:50.3]} 20... b5 {[%clk 0:02:26.6]} 21.
Be4 {[%clk 0:01:48.5]} 21... Rad8 {[%clk 0:02:24.8]} 22. g5 {[%clk 0:01:43]}
22... Bxd5 {[%clk 0:02:21.7]} 23. cxd5 {[%clk 0:01:41.6]} 23... c4 {[%clk
0:02:16.2]} 24. d6 {[%clk 0:01:35.3]} 24... b4 {[%clk 0:01:52.1]} 25. Qxb4
{[%clk 0:01:31.1]} 25... Qxg5 {[%clk 0:01:52.7]} 26. Qxc4 {[%clk 0:01:27.3]}
26... a3 {[%clk 0:01:53.3]} 27. b3 {[%clk 0:01:27]} 27... Kh7 {[%clk 0:01:53.1]}
28. h4 {[%clk 0:01:26.8]} 28... Qh5 {[%clk 0:01:52.6]} 29. d7 {[%clk 0:00:37.9]}
29... f5 {[%clk 0:01:43.8]} 30. Bc6 {[%clk 0:00:37.9]} 30... Qh6 {[%clk
0:01:33.7]} 31. Qc5 {[%clk 0:00:28]} 31... Qf4 {[%clk 0:01:29.4]} 32. Qxa3
{[%clk 0:00:27]} 32... e4 {[%clk 0:01:22.7]} 33. Qe7 {[%clk 0:00:22.6]} 33...
Qxf3 {[%clk 0:00:37.8]} 34. h5 {[%clk 0:00:20.6]} 34... gxh5 {[%clk 0:00:38.3]}
35. Rhg1 {[%clk 0:00:13.1]} 35... Rg8 {[%clk 0:00:38.7]} 36. Bd5 {[%clk
0:00:13.5]} 36... Qc3 {[%clk 0:00:17.4]} 37. Bxg8+ {[%clk 0:00:13.6]} 37... Rxg8
{[%clk 0:00:16.8]} 38. Rxg7+ {[%clk 0:00:14.2]} 38... Rxg7 {[%clk 0:00:17.4]}
39. Qxg7+ {[%clk 0:00:14.6]} 39... Qxg7 {[%clk 0:00:15.6]} 40. d8=Q {[%clk
0:00:15]} 40... Qe5 {[%clk 0:00:03.5]} 41. Rd7+ {[%clk 0:00:14.1]} 41... Kg6
{[%clk 0:00:04.1]} 42. Qg8+ {[%clk 0:00:14.1]} 42... Kf6 {[%clk 0:00:04.7]} 43.
Qg7+ {[%clk 0:00:12.8]} 43... Ke6 {[%clk 0:00:05.4]} 44. Qf7# {[%clk 0:00:13.5]}
1-0

[Event "*** Titled Tuesday Blitz"]
[Site "Chess.com"]
[Date "2021.04.06"]
[Round "7"]
[White "ChessAurochs"]
[Black "goofypenguin96"]
[Result "1-0"]
[WhiteElo "2524"]
[BlackElo "2376"]
[TimeControl "180+1"]
[EndTime "11:18:51 PDT"]
[Termination "ChessAurochs won on time"]

1. e4 {[%clk 0:03:00.9]} 1... c5 {[%clk 0:02:59.3]} 2. Nf3 {[%clk 0:02:58.7]}
2... d6 {[%clk 0:02:59.8]} 3. d4 {[%clk 0:02:58.3]} 3... cxd4 {[%clk 0:03:00.7]}
4. Nxd4 {[%clk 0:02:59.2]} 4... Nf6 {[%clk 0:03:00.5]} 5. Nc3 {[%clk 0:02:59.1]}
5... e6 {[%clk 0:02:59.7]} 6. Be3 {[%clk 0:02:55.5]} 6... a6 {[%clk 0:02:58.9]}
7. f3 {[%clk 0:02:55.8]} 7... Be7 {[%clk 0:02:56.1]} 8. Qd2 {[%clk 0:02:55.8]}
8... Bd7 {[%clk 0:02:56.3]} 9. g4 {[%clk 0:02:56]} 9... Nc6 {[%clk 0:02:51.3]}
10. O-O-O {[%clk 0:02:53]} 10... b5 {[%clk 0:02:49.5]} 11. h4 {[%clk 0:02:44.5]}
11... Qa5 {[%clk 0:02:35.3]} 12. Kb1 {[%clk 0:02:36.9]} 12... Nxd4 {[%clk
0:02:27.5]} 13. Bxd4 {[%clk 0:02:29.5]} 13... e5 {[%clk 0:02:27.8]} 14. Be3
{[%clk 0:02:25.1]} 14... Be6 {[%clk 0:02:27.8]} 15. g5 {[%clk 0:02:11.5]} 15...
b4 {[%clk 0:02:20.5]} 16. Nd5 {[%clk 0:01:53.2]} 16... Nxd5 {[%clk 0:02:09.3]}
17. exd5 {[%clk 0:01:54.1]} 17... Bf5 {[%clk 0:02:09.7]} 18. Bd3 {[%clk
0:01:27.2]} 18... Bxd3 {[%clk 0:02:08.4]} 19. Qxd3 {[%clk 0:01:28.1]} 19... Rb8
{[%clk 0:01:44.1]} 20. f4 {[%clk 0:01:19.9]} 20... Qb5 {[%clk 0:01:03.7]} 21.
fxe5 {[%clk 0:01:15.7]} 21... Qxd3 {[%clk 0:01:01.7]} 22. Rxd3 {[%clk
0:01:15.4]} 22... dxe5 {[%clk 0:01:01.2]} 23. d6 {[%clk 0:01:14]} 23... Bd8
{[%clk 0:01:01.6]} 24. d7+ {[%clk 0:01:11.1]} 24... Ke7 {[%clk 0:01:01.7]} 25.
Bc5+ {[%clk 0:01:10.9]} 25... Ke6 {[%clk 0:01:02]} 26. Rd6+ {[%clk 0:01:05.6]}
26... Kf5 {[%clk 0:01:02]} 27. Rf1+ {[%clk 0:01:04.8]} 27... Kg4 {[%clk
0:01:00.8]} 28. Rd2 {[%clk 0:00:58]} 28... f5 {[%clk 0:00:40.3]} 29. gxf6 {[%clk
0:00:53.3]} 29... Bxf6 {[%clk 0:00:39.2]} 30. Rg2+ {[%clk 0:00:30.2]} 30... Kh3
{[%clk 0:00:37.9]} 31. Rgg1 {[%clk 0:00:29.2]} 31... Rhd8 {[%clk 0:00:19.8]} 32.
Rf3+ {[%clk 0:00:19.7]} 32... Kh2 {[%clk 0:00:18.7]} 33. Rgg3 {[%clk 0:00:19]}
33... Rxd7 {[%clk 0:00:05.9]} 34. Rh3+ {[%clk 0:00:19.1]} 34... Kg2 {[%clk
0:00:06.1]} 35. Rfg3+ {[%clk 0:00:18.1]} 35... Kf1 {[%clk 0:00:05.8]} 36. Rg1+
{[%clk 0:00:08.5]} 36... Ke2 {[%clk 0:00:05.3]} 37. Rg2+ {[%clk 0:00:08.9]}
37... Kf1 {[%clk 0:00:04.6]} 38. Rf2+ {[%clk 0:00:09]} 38... Kg1 {[%clk
0:00:03.5]} 39. Rfh2+ {[%clk 0:00:08.8]} 39... Kf1 {[%clk 0:00:03.5]} 40. Rf3+
{[%clk 0:00:08.5]} 1-0

[Event "*** Titled Tuesday Blitz"]
[Site "Chess.com"]
[Date "2021.04.06"]
[Round "7"]
[White "Fighter008"]
[Black "GMSrinath"]
[Result "0-1"]
[WhiteElo "2616"]
[BlackElo "2819"]
[TimeControl "180+1"]
[EndTime "11:18:53 PDT"]
[Termination "GMSrinath won by resignation"]

1. e4 {[%clk 0:03:00.9]} 1... c5 {[%clk 0:02:56.9]} 2. Nf3 {[%clk 0:03:00.7]}
2... Nc6 {[%clk 0:02:57.5]} 3. Bb5 {[%clk 0:03:00]} 3... g6 {[%clk 0:02:56.8]}
4. O-O {[%clk 0:02:59.6]} 4... Bg7 {[%clk 0:02:56.7]} 5. c3 {[%clk 0:03:00.1]}
5... Nf6 {[%clk 0:02:55.2]} 6. d4 {[%clk 0:03:00.2]} 6... Nxe4 {[%clk
0:02:40.5]} 7. d5 {[%clk 0:02:59.2]} 7... Nb8 {[%clk 0:02:40.1]} 8. Re1 {[%clk
0:02:59.1]} 8... Nd6 {[%clk 0:02:40]} 9. Na3 {[%clk 0:02:59.3]} 9... O-O {[%clk
0:02:35.1]} 10. Bg5 {[%clk 0:02:59.2]} 10... f6 {[%clk 0:02:34.3]} 11. Bf4
{[%clk 0:02:59.2]} 11... Nxb5 {[%clk 0:02:33.3]} 12. Nxb5 {[%clk 0:02:58.9]}
12... d6 {[%clk 0:02:33.9]} 13. Qe2 {[%clk 0:02:38.2]} 13... a6 {[%clk
0:02:29.7]} 14. Na3 {[%clk 0:02:37.7]} 14... Rf7 {[%clk 0:02:27.9]} 15. b4
{[%clk 0:02:30.9]} 15... b6 {[%clk 0:02:26.3]} 16. h3 {[%clk 0:02:23.2]} 16...
g5 {[%clk 0:02:21.8]} 17. Bg3 {[%clk 0:02:20.6]} 17... Bf5 {[%clk 0:02:19.9]}
18. Nd2 {[%clk 0:02:17.8]} 18... Nd7 {[%clk 0:02:18.1]} 19. Nac4 {[%clk
0:02:14.9]} 19... Bg6 {[%clk 0:02:11.8]} 20. f4 {[%clk 0:02:12.9]} 20... f5
{[%clk 0:02:06.7]} 21. Rac1 {[%clk 0:02:04.3]} 21... h6 {[%clk 0:02:05.1]} 22.
Nf3 {[%clk 0:02:03]} 22... Nf6 {[%clk 0:01:49.4]} 23. fxg5 {[%clk 0:01:56.6]}
23... Ne4 {[%clk 0:01:45]} 24. Bf4 {[%clk 0:01:53.3]} 24... Nxc3 {[%clk
0:01:29.4]} 25. Qe6 {[%clk 0:01:48.4]} 25... Kh7 {[%clk 0:01:04.6]} 26. Nh4
{[%clk 0:01:47.7]} 26... Bd4+ {[%clk 0:00:59.9]} 27. Kh1 {[%clk 0:01:43.6]}
27... Qg8 {[%clk 0:00:51]} 28. bxc5 {[%clk 0:01:30.6]} 28... bxc5 {[%clk
0:00:49.9]} 29. gxh6 {[%clk 0:01:15.9]} 29... Re8 {[%clk 0:00:32]} 30. Rxc3
{[%clk 0:01:02.5]} 30... Bxc3 {[%clk 0:00:31.8]} 31. Re3 {[%clk 0:01:02.8]}
31... Bf6 {[%clk 0:00:31.3]} 32. Nxg6 {[%clk 0:00:48.9]} 32... Qxg6 {[%clk
0:00:32.2]} 33. Rg3 {[%clk 0:00:49.2]} 33... Qh5 {[%clk 0:00:32.7]} 34. Ne3
{[%clk 0:00:48.5]} 34... Bh4 {[%clk 0:00:22.8]} 35. Rg7+ {[%clk 0:00:41.4]}
35... Rxg7 {[%clk 0:00:22.7]} 36. hxg7 {[%clk 0:00:42.3]} 36... Bf6 {[%clk
0:00:19.3]} 37. Nxf5 {[%clk 0:00:40.9]} 37... Bxg7 {[%clk 0:00:17.2]} 38. g4
{[%clk 0:00:26.5]} 38... Qxh3+ {[%clk 0:00:16.8]} 39. Bh2 {[%clk 0:00:19.6]}
39... Qf3+ {[%clk 0:00:16.6]} 40. Kg1 {[%clk 0:00:19.1]} 40... Qxg4+ {[%clk
0:00:16.7]} 41. Kh1 {[%clk 0:00:19.5]} 41... Qf3+ {[%clk 0:00:12.8]} 42. Kg1
{[%clk 0:00:19.6]} 42... Rf8 {[%clk 0:00:08.5]} 43. Ng3 {[%clk 0:00:11.7]} 43...
Bd4+ {[%clk 0:00:07.7]} 0-1

[Event "*** Titled Tuesday Blitz"]
[Site "Chess.com"]
[Date "2021.04.06"]
[Round "7"]
[White "QuintilianoR"]
[Black "mac0504"]
[Result "1-0"]
[WhiteElo "2698"]
[BlackElo "2525"]
[TimeControl "180+1"]
[EndTime "11:18:54 PDT"]
[Termination "QuintilianoR won on time"]

1. d4 {[%clk 0:03:00.9]} 1... Nf6 {[%clk 0:02:59.3]} 2. c4 {[%clk 0:03:01]} 2...
e6 {[%clk 0:02:59.3]} 3. Nf3 {[%clk 0:03:00.6]} 3... Bb4+ {[%clk 0:02:57.4]} 4.
Nbd2 {[%clk 0:03:00.5]} 4... d6 {[%clk 0:02:56.9]} 5. g3 {[%clk 0:02:56.9]} 5...
O-O {[%clk 0:02:47.9]} 6. Bg2 {[%clk 0:02:57.1]} 6... Re8 {[%clk 0:02:47.8]} 7.
O-O {[%clk 0:02:55.3]} 7... e5 {[%clk 0:02:47.5]} 8. a3 {[%clk 0:02:43.8]} 8...
Bxd2 {[%clk 0:02:39.3]} 9. Bxd2 {[%clk 0:02:43.8]} 9... Bg4 {[%clk 0:02:28.2]}
10. h3 {[%clk 0:02:24.9]} 10... Bh5 {[%clk 0:02:23.4]} 11. dxe5 {[%clk
0:01:26.3]} 11... dxe5 {[%clk 0:02:22.2]} 12. Bg5 {[%clk 0:01:24.8]} 12... Qe7
{[%clk 0:01:47.9]} 13. Nh4 {[%clk 0:01:05.7]} 13... Nc6 {[%clk 0:01:42.8]} 14.
g4 {[%clk 0:00:56.4]} 14... Bg6 {[%clk 0:01:42.1]} 15. Nxg6 {[%clk 0:00:56]}
15... hxg6 {[%clk 0:01:43]} 16. e3 {[%clk 0:00:55.1]} 16... Qe6 {[%clk
0:01:19.3]} 17. Qc2 {[%clk 0:00:53.6]} 17... Nd7 {[%clk 0:00:59.6]} 18. Bd5
{[%clk 0:00:43.8]} 18... Qd6 {[%clk 0:00:56.1]} 19. Rfd1 {[%clk 0:00:43.1]}
19... Qc5 {[%clk 0:00:27]} 20. Bxf7+ {[%clk 0:00:32.8]} 20... Kxf7 {[%clk
0:00:26.4]} 21. Rxd7+ {[%clk 0:00:32.3]} 21... Ne7 {[%clk 0:00:24.1]} 22. b4
{[%clk 0:00:20.5]} 22... Qc6 {[%clk 0:00:23.9]} 23. Rad1 {[%clk 0:00:20.7]}
23... b5 {[%clk 0:00:22.4]} 24. c5 {[%clk 0:00:20.8]} 24... a5 {[%clk
0:00:15.8]} 25. Qb3+ {[%clk 0:00:15.3]} 25... Kf8 {[%clk 0:00:15]} 26. Qd3
{[%clk 0:00:13.8]} 26... axb4 {[%clk 0:00:12.6]} 27. axb4 {[%clk 0:00:14.7]}
27... Qf3 {[%clk 0:00:08.6]} 28. Bxe7+ {[%clk 0:00:13.7]} 28... Rxe7 {[%clk
0:00:08.8]} 29. Rxe7 {[%clk 0:00:14.3]} 29... Kxe7 {[%clk 0:00:07.2]} 30. Qd7+
{[%clk 0:00:14.5]} 30... Kf8 {[%clk 0:00:05.4]} 31. Qd5 {[%clk 0:00:14.6]} 31...
Qxd5 {[%clk 0:00:02.7]} 32. Rxd5 {[%clk 0:00:15.5]} 32... Ra4 {[%clk 0:00:03.3]}
33. Rd7 {[%clk 0:00:14.4]} 33... Rxb4 {[%clk 0:00:02.6]} 34. Rxc7 {[%clk
0:00:15]} 34... Rc4 {[%clk 0:00:02.6]} 35. Kg2 {[%clk 0:00:15.2]} 35... g5
{[%clk 0:00:02.8]} 36. c6 {[%clk 0:00:15.6]} 36... b4 {[%clk 0:00:02.9]} 37. Rb7
{[%clk 0:00:15.9]} 37... Rxc6 {[%clk 0:00:02.5]} 38. Rxb4 {[%clk 0:00:15.7]}
38... Kf7 {[%clk 0:00:03.2]} 39. Rb5 {[%clk 0:00:15.4]} 39... Kf6 {[%clk
0:00:03.3]} 40. Kf3 {[%clk 0:00:15.9]} 40... Rc2 {[%clk 0:00:02.3]} 41. Rb6+
{[%clk 0:00:16]} 41... Kf7 {[%clk 0:00:01.9]} 42. Rb7+ {[%clk 0:00:16.8]} 42...
Kf6 {[%clk 0:00:02]} 43. Kg3 {[%clk 0:00:17.3]} 43... Rc4 {[%clk 0:00:02.1]} 44.
Rb8 {[%clk 0:00:17.6]} 44... Kg6 {[%clk 0:00:02.1]} 45. Rf8 {[%clk 0:00:17.8]}
45... Rb4 {[%clk 0:00:02]} 46. Rf5 {[%clk 0:00:18]} 46... Re4 {[%clk 0:00:02]}
47. Kf3 {[%clk 0:00:18.2]} 1-0

[Event "*** Titled Tuesday Blitz"]
[Site "Chess.com"]
[Date "2021.04.06"]
[Round "7"]
[White "bratkoo"]
[Black "Sueetin"]
[Result "1-0"]
[WhiteElo "2558"]
[BlackElo "2398"]
[TimeControl "180+1"]
[EndTime "11:18:54 PDT"]
[Termination "bratkoo won by resignation"]

1. e4 {[%clk 0:03:00.9]} 1... e6 {[%clk 0:03:00.3]} 2. d4 {[%clk 0:02:58.8]}
2... d5 {[%clk 0:03:00.7]} 3. Nc3 {[%clk 0:02:58.8]} 3... Nf6 {[%clk 0:03:01.1]}
4. e5 {[%clk 0:02:57.4]} 4... Nfd7 {[%clk 0:03:01.5]} 5. Nce2 {[%clk 0:02:57.8]}
5... c5 {[%clk 0:03:01.1]} 6. c3 {[%clk 0:02:58.1]} 6... Nc6 {[%clk 0:02:59.5]}
7. Nf3 {[%clk 0:02:58.3]} 7... Be7 {[%clk 0:02:49.8]} 8. h4 {[%clk 0:02:58.1]}
8... O-O {[%clk 0:02:45.1]} 9. h5 {[%clk 0:02:58.4]} 9... Qa5 {[%clk 0:02:42.5]}
10. h6 {[%clk 0:02:52.4]} 10... g6 {[%clk 0:02:41.8]} 11. Bd2 {[%clk 0:02:50.1]}
11... Qb6 {[%clk 0:02:39.5]} 12. Rb1 {[%clk 0:02:02.1]} 12... f6 {[%clk
0:02:38.9]} 13. Nf4 {[%clk 0:02:00.4]} 13... Ndxe5 {[%clk 0:02:36.1]} 14. dxe5
{[%clk 0:02:00.2]} 14... fxe5 {[%clk 0:02:34.4]} 15. Nh3 {[%clk 0:01:14.5]}
15... e4 {[%clk 0:02:32.4]} 16. Nfg5 {[%clk 0:01:14.7]} 16... c4 {[%clk
0:02:21.6]} 17. Be3 {[%clk 0:01:14.7]} 17... Bc5 {[%clk 0:02:20.8]} 18. Qd2
{[%clk 0:01:10.4]} 18... Ne5 {[%clk 0:02:13.3]} 19. b3 {[%clk 0:01:06.9]} 19...
Nd3+ {[%clk 0:01:45.8]} 20. Bxd3 {[%clk 0:01:06.4]} 20... cxd3 {[%clk
0:01:46.7]} 21. Bf4 {[%clk 0:00:36.7]} 21... Bd6 {[%clk 0:01:25.5]} 22. Be3
{[%clk 0:00:22.3]} 22... Qc7 {[%clk 0:01:21.1]} 23. c4 {[%clk 0:00:19.4]} 23...
a5 {[%clk 0:01:12.7]} 24. Kf1 {[%clk 0:00:19.2]} 24... Bb4 {[%clk 0:01:10.4]}
25. Qb2 {[%clk 0:00:19.4]} 25... Bd6 {[%clk 0:00:50.5]} 26. Nxh7 {[%clk
0:00:19.5]} 26... Be5 {[%clk 0:00:50.4]} 27. Bd4 {[%clk 0:00:18.3]} 27... Bxd4
{[%clk 0:00:29.4]} 28. Qxd4 {[%clk 0:00:19.2]} 28... e5 {[%clk 0:00:30]} 29.
Qxd5+ {[%clk 0:00:19.7]} 29... Kxh7 {[%clk 0:00:30.7]} 30. Ng5+ {[%clk
0:00:19.8]} 30... Kh8 {[%clk 0:00:31]} 31. Qxe4 {[%clk 0:00:17.1]} 31... Bf5
{[%clk 0:00:30]} 32. Qe3 {[%clk 0:00:16.8]} 32... Rad8 {[%clk 0:00:24.8]} 33.
Rd1 {[%clk 0:00:16.8]} 33... Qd6 {[%clk 0:00:21.7]} 34. Rd2 {[%clk 0:00:16.2]}
34... Qd4 {[%clk 0:00:19.7]} 35. Qxd4 {[%clk 0:00:16.2]} 35... Rxd4 {[%clk
0:00:20.6]} 36. f3 {[%clk 0:00:16.7]} 36... e4 {[%clk 0:00:20.2]} 37. Kf2 {[%clk
0:00:16.6]} 37... exf3 {[%clk 0:00:18.6]} 38. gxf3 {[%clk 0:00:17]} 38... Re8
{[%clk 0:00:16]} 39. Re1 {[%clk 0:00:14.9]} 39... Rxe1 {[%clk 0:00:14.1]} 40.
Kxe1 {[%clk 0:00:14.9]} 40... Rh4 {[%clk 0:00:14.4]} 41. Rg2 {[%clk 0:00:14.9]}
41... Rh5 {[%clk 0:00:06.3]} 42. h7 {[%clk 0:00:15]} 42... Rxg5 {[%clk
0:00:04.7]} 43. Rxg5 {[%clk 0:00:14.8]} 43... Kxh7 {[%clk 0:00:05.6]} 44. Kd2
{[%clk 0:00:15.1]} 44... Kg7 {[%clk 0:00:06]} 45. Rxf5 {[%clk 0:00:15.6]} 45...
gxf5 {[%clk 0:00:06.1]} 46. Kxd3 {[%clk 0:00:16.5]} 46... Kf6 {[%clk 0:00:06.8]}
47. Kd4 {[%clk 0:00:16.7]} 47... Kg5 {[%clk 0:00:06.2]} 48. Ke5 {[%clk
0:00:17.2]} 1-0

[Event "*** Titled Tuesday Blitz"]
[Site "Chess.com"]
[Date "2021.04.06"]
[Round "7"]
[White "c_r_e_e_p_e_r"]
[Black "Lenyas66"]
[Result "0-1"]
[WhiteElo "2367"]
[BlackElo "2514"]
[TimeControl "180+1"]
[EndTime "11:18:54 PDT"]
[Termination "Lenyas66 won by checkmate"]

1. d4 {[%clk 0:03:00.9]} 1... e6 {[%clk 0:02:59.8]} 2. e4 {[%clk 0:03:00.9]}
2... d5 {[%clk 0:02:59.4]} 3. Nd2 {[%clk 0:03:01.5]} 3... Nf6 {[%clk 0:02:59.4]}
4. e5 {[%clk 0:03:01.4]} 4... Nfd7 {[%clk 0:02:59.4]} 5. f4 {[%clk 0:03:01.3]}
5... c5 {[%clk 0:02:59]} 6. c3 {[%clk 0:03:00.5]} 6... Nc6 {[%clk 0:02:59.1]} 7.
Ngf3 {[%clk 0:03:00]} 7... Qb6 {[%clk 0:02:59.2]} 8. Nb3 {[%clk 0:02:58.3]} 8...
f5 {[%clk 0:02:54.9]} 9. Be2 {[%clk 0:02:53.6]} 9... Be7 {[%clk 0:02:51]} 10.
O-O {[%clk 0:02:53.8]} 10... O-O {[%clk 0:02:50]} 11. Kh1 {[%clk 0:02:53.7]}
11... cxd4 {[%clk 0:02:45.2]} 12. Nbxd4 {[%clk 0:02:50.8]} 12... Nc5 {[%clk
0:02:41.5]} 13. Rb1 {[%clk 0:02:07]} 13... Ne4 {[%clk 0:02:39.7]} 14. Be3 {[%clk
0:02:06]} 14... Qc7 {[%clk 0:02:33.4]} 15. c4 {[%clk 0:01:59.1]} 15... Rd8
{[%clk 0:02:28.5]} 16. cxd5 {[%clk 0:01:58.1]} 16... Rxd5 {[%clk 0:01:55.6]} 17.
Bc4 {[%clk 0:01:58.1]} 17... Nxd4 {[%clk 0:01:48.8]} 18. Bxd5 {[%clk 0:01:58]}
18... Nxf3 {[%clk 0:01:38.1]} 19. Bxe4 {[%clk 0:01:56.9]} 19... fxe4 {[%clk
0:01:36.6]} 20. gxf3 {[%clk 0:01:57.3]} 20... Bd7 {[%clk 0:01:24]} 21. Qb3
{[%clk 0:01:50.2]} 21... b5 {[%clk 0:00:48.1]} 22. Rbc1 {[%clk 0:01:43.5]} 22...
Qb7 {[%clk 0:00:47.6]} 23. f5 {[%clk 0:01:35.2]} 23... exf3 {[%clk 0:00:44.8]}
24. Bf2 {[%clk 0:01:35.6]} 24... Rc8 {[%clk 0:00:36.9]} 25. fxe6 {[%clk
0:01:20]} 25... Bc6 {[%clk 0:00:36.8]} 26. Qe3 {[%clk 0:01:03.1]} 26... a5
{[%clk 0:00:32.5]} 27. Rg1 {[%clk 0:01:01.6]} 27... Kh8 {[%clk 0:00:25.7]} 28.
Rg4 {[%clk 0:00:57.7]} 28... h6 {[%clk 0:00:24.8]} 29. Rcg1 {[%clk 0:00:49]}
29... Bf8 {[%clk 0:00:24.9]} 30. Qf4 {[%clk 0:00:42.3]} 30... Bd5 {[%clk
0:00:20.4]} 31. Qf5 {[%clk 0:00:37.2]} 31... Qe7 {[%clk 0:00:19.9]} 32. Rg6
{[%clk 0:00:29.8]} 32... Rc6 {[%clk 0:00:20.1]} 33. Qf7 {[%clk 0:00:20.5]} 33...
Qxf7 {[%clk 0:00:18.6]} 34. exf7 {[%clk 0:00:20.8]} 34... Rc2 {[%clk 0:00:17.3]}
35. Rd1 {[%clk 0:00:14.3]} 35... Bxf7 {[%clk 0:00:16.1]} 36. Rb6 {[%clk
0:00:02.7]} 36... Rxf2 {[%clk 0:00:15]} 37. Rb8 {[%clk 0:00:02]} 37... Kg8
{[%clk 0:00:14.8]} 38. Kg1 {[%clk 0:00:01.1]} 38... Rg2+ {[%clk 0:00:14.3]} 39.
Kf1 {[%clk 0:00:01.6]} 39... Bc4+ {[%clk 0:00:13.2]} 40. Ke1 {[%clk 0:00:02]}
40... f2+ {[%clk 0:00:13.5]} 41. Kd2 {[%clk 0:00:01.8]} 41... f1=Q+ {[%clk
0:00:13.8]} 42. Kc1 {[%clk 0:00:02.5]} 42... Qf4+ {[%clk 0:00:13.2]} 43. Kb1
{[%clk 0:00:02.7]} 43... Qe4+ {[%clk 0:00:12.8]} 44. Ka1 {[%clk 0:00:02.6]}
44... Qc2 {[%clk 0:00:12.7]} 45. Rb1 {[%clk 0:00:02.6]} 45... Bd3 {[%clk
0:00:13]} 46. b3 {[%clk 0:00:01]} 46... Qxb1# {[%clk 0:00:12.6]} 0-1